fUSD/lending_fUSD_20250221
["ID","MTS","AMOUNT","RATE_DAILY","PERIOD"]
[353988176,1740174646574,-500.0,0.00011281,2]
[353988178,1740174646583,-500.0,0.00011281,2]
[353988180,1740174646592,-500.0,0.00011281,2]
[353988182,1740174646601,-934.73,0.00011281,2]
[353988184,1740174646611,-649.61012725,0.00011281,2]
[353988186,1740174646621,-500.0,0.00011281,2]
[353988188,1740174646631,-1567.06,0.00011281,2]
[353988190,1740174646640,-500.0,0.00011281,2]
[353988192,1740174646649,-500.0,0.00011281,2]
[353988194,1740174646658,-867.84,0.00011281,2]
[353988196,1740174646668,-500.0,0.00011281,2]
[353988198,1740174646678,-500.0,0.00011281,2]
[353988200,1740174646687,-500.0,0.00011281,2]
[353988202,1740174646696,-500.0,0.00011281,2]
[353988204,1740174646706,-500.0,0.00011281,2]
[353988206,1740174646715,-500.0,0.00011281,2]
[353988208,1740174646725,-505.40691146,0.00011281,2]
[353988210,1740174646735,-500.0,0.00011281,2]
[353988212,1740174646745,-500.0,0.00011281,2]
[353988214,1740174646754,-500.0,0.00011281,2]
[353988217,1740174646764,-500.0,0.00011281,2]
[353988218,1740174646774,-500.0,0.00011281,2]
[353988220,1740174646783,-500.0,0.00011281,2]
[353988222,1740174646793,-983.84,0.00011281,2]
[353988224,1740174646803,-500.0,0.00011281,2]
[353988226,1740174646812,-504.09324273,0.00011281,2]
[353988228,1740174646821,-158.563129,0.00011281,2]
[353988231,1740174646830,-500.0,0.00011281,2]
[353988233,1740174646844,-500.0,0.00011281,2]
[353988235,1740174646857,-500.0,0.00011281,2]
[353988238,1740174646869,-500.0,0.00011281,2]
[353988240,1740174646881,-500.0,0.00011281,2]
[353988242,1740174646891,-500.0,0.00011281,2]
[353988244,1740174646902,-500.0,0.00011281,2]
[353988246,1740174646914,-500.0,0.00011281,2]
[353988249,1740174646927,-500.0,0.00011281,2]
[353988251,1740174646939,-500.0,0.00011281,2]
[353988253,1740174646951,-500.0,0.00011281,2]
[353988256,1740174646964,-385.58701503,0.00011281,2]
[353988258,1740174646975,-500.0,0.00011281,2]
[353988260,1740174646987,-500.0,0.00011281,2]
[353988262,1740174646999,-500.0,0.00011281,2]
[353988265,1740174647012,-500.0,0.00011281,2]
[353988267,1740174647023,-500.0,0.00011281,2]
[353988269,1740174647033,-500.0,0.00011281,2]
[353988271,1740174647044,-500.0,0.00011281,2]
[353988273,1740174647057,-500.0,0.00011281,2]
[353988276,1740174647069,-500.0,0.00011281,2]
[353988278,1740174647080,-500.0,0.00011281,2]
[353988280,1740174647092,-500.0,0.00011281,2]
[353988282,1740174647104,-500.0,0.00011281,2]
[353988285,1740174647116,-500.0,0.00011281,2]
[353988287,1740174647127,-608.33,0.00011281,2]
[353988289,1740174647140,-500.0,0.00011281,2]
[353988292,1740174647151,-3611.55,0.00011281,2]
[353988294,1740174647162,-814.37,0.00011281,2]
[353988296,1740174647176,-1000.0,0.00011315,2]
[353988299,1740174647188,-150.0,0.00011329,2]
[353988301,1740174647204,-150.0,0.00011335,2]
[353988303,1740174647215,-24449.2295,0.00011347,2]
[353988305,1740174647228,-167.63189637,0.00011352,2]
[353988307,1740174647239,-150.0,0.00011357,2]
[353988310,1740174647251,-500.0,0.00011362,2]
[353988312,1740174647263,-500.0,0.00011362,2]
[353988314,1740174647278,-500.0,0.00011362,2]
[353988317,1740174647290,-500.0,0.00011362,2]
[353988319,1740174647301,-769.58,0.00011362,2]
[353988321,1740174647312,-712.23,0.00011362,2]
[353988323,1740174647324,-782.18,0.00011362,2]
[353988325,1740174647334,-500.0,0.00011362,2]
[353988327,1740174647345,-500.0,0.00011362,2]
[353988329,1740174647355,-500.0,0.00011362,2]
[353988332,1740174647367,-500.0,0.00011362,2]
[353988334,1740174647381,-929.31,0.00011362,2]
[353988336,1740174647393,-689.62,0.00011362,2]
[353988338,1740174647403,-657.86,0.00011362,2]
[353988340,1740174647413,-500.0,0.00011362,2]
[353988342,1740174647423,-500.0,0.00011362,2]
[353988345,1740174647434,-500.0,0.00011362,2]
[353988347,1740174647446,-630.73,0.00011362,2]
[353988349,1740174647461,-500.0,0.00011362,2]
[353988352,1740174647473,-500.0,0.00011362,2]
[353988354,1740174647484,-501.22,0.00011362,2]
[353988356,1740174647495,-500.0,0.00011362,2]
[353988358,1740174647506,-500.0,0.00011362,2]
[353988360,1740174647517,-715.96,0.00011362,2]
[353988362,1740174647528,-1064.98,0.00011362,2]
[353988364,1740174647540,-500.0,0.00011362,2]
[353988367,1740174647551,-500.0,0.00011362,2]
[353988369,1740174647562,-1147.05,0.00011362,2]
[353988371,1740174647573,-500.0,0.00011362,2]
[353988373,1740174647584,-2413.09,0.00011362,2]
[353988375,1740174647595,-522.96,0.00011362,2]
[353988377,1740174647606,-500.0,0.00011362,2]
[353988380,1740174647617,-514.29,0.00011362,2]
[353988382,1740174647628,-500.0,0.00011362,2]
[353988384,1740174647639,-500.0,0.00011363,2]
[353988386,1740174647650,-500.0,0.00011363,2]
[353988388,1740174647662,-500.0,0.00011363,2]
[353988390,1740174647673,-500.0,0.00011363,2]
[353988393,1740174647683,-435.75,0.00011363,2]
[353988395,1740174647694,-169.34464097,0.00011363,2]
[353988414,1740174648033,-500.0,0.00011362,2]
[353988415,1740174648044,-500.0,0.00011362,2]
[353988416,1740174648056,-330.65535903,0.00011363,2]
[353988417,1740174648067,-500.0,0.00011363,2]
[353988418,1740174648078,-500.0,0.00011363,2]
[353988419,1740174648089,-595.94,0.00011363,2]
[353988420,1740174648100,-500.0,0.00011363,2]
[353988421,1740174648111,-500.0,0.00011363,2]
[353988422,1740174648122,-585.92,0.00011363,2]
[353988423,1740174648133,-500.0,0.00011363,2]
[353988424,1740174648148,-500.0,0.00011363,2]
[353988425,1740174648159,-500.0,0.00011363,2]
[353988426,1740174648170,-3.39369445,0.00011363,2]
[353988427,1740174648183,-496.60630555,0.00011363,2]
[353988428,1740174648196,-500.0,0.00011363,2]
[353988429,1740174648208,-447.275461,0.00011363,2]
[353988430,1740174648218,-36.722554,0.00011363,2]
[353988431,1740174649430,-500.0,0.00011115,2]
[353988432,1740174649440,-500.0,0.00011115,2]
[353988433,1740174649450,-500.0,0.00011115,2]
[353988434,1740174649460,-501.41210496,0.00011116,2]
[353988435,1740174649470,-512.45284315,0.00011116,2]
[353988436,1740174649479,-164.68352614,0.00011197,2]
[353988437,1740174649490,-500.0,0.00011198,2]
[353988438,1740174649500,-548.537446,0.00011363,2]
[353988439,1740174649509,-500.0,0.00011363,2]
[353988440,1740174649520,-500.0,0.00011363,2]
[353988441,1740174649529,-500.0,0.00011363,2]
[353988442,1740174649539,-735.696285,0.00011363,2]
[353988443,1740174649548,-500.0,0.00011363,2]
[353988444,1740174649558,-500.0,0.00011363,2]
[353988445,1740174649567,-295.81,0.00011363,2]
[353988446,1740174649576,-500.0,0.00011363,2]
[353988447,1740174649585,-500.0,0.00011363,2]
[353988448,1740174649594,-150.21,0.00011363,2]
[353988449,1740174649606,-500.0,0.00011363,2]
[353988450,1740174649616,-500.0,0.00011363,2]
[353988451,1740174649625,-130.82789475,0.00011363,2]
[353988452,1740174649637,-346.15524434,0.00011363,2]
[353988453,1740174649648,-23.01686091,0.00011363,2]
[353988454,1740174649657,-389.88513913,0.00011363,2]
[353988455,1740174649669,-110.11486087,0.00011363,2]
[353988456,1740174649678,-500.0,0.00011363,2]
[353988457,1740174649687,-500.0,0.00011363,2]
[353988458,1740174649697,-500.0,0.00011363,2]
[353988459,1740174649706,-500.0,0.00011363,2]
[353988460,1740174649715,-500.0,0.00011363,2]
[353988461,1740174649725,-500.0,0.00011363,2]
[353988462,1740174649734,-500.0,0.00011363,2]
[353988463,1740174649744,-500.0,0.00011363,2]
[353988464,1740174649754,-500.0,0.00011363,2]
[353988465,1740174649764,-500.0,0.00011363,2]
[353988466,1740174649773,-500.0,0.00011363,2]
[353988467,1740174649782,-318.33,0.00011363,2]
[353988468,1740174649791,-500.0,0.00011363,2]
[353988469,1740174649801,-500.0,0.00011363,2]
[353988470,1740174649810,-500.0,0.00011363,2]
[353988471,1740174649820,-500.0,0.00011363,2]
[353988472,1740174649829,-500.0,0.00011363,2]
[353988473,1740174649838,-500.0,0.00011363,2]
[353988474,1740174649847,-495.4471,0.00011363,2]
[353988475,1740174649856,-500.0,0.00011363,2]
[353988476,1740174649865,-500.0,0.00011363,2]
[353988477,1740174649875,-79.901639,0.00011363,2]
[353988478,1740174649891,-420.098361,0.00011363,2]
[353988479,1740174649901,-500.0,0.00011363,2]
[353988480,1740174649910,-146.15494826,0.00011363,2]
[353988481,1740174650174,-500.0,0.00011116,2]
[353988482,1740174650184,-500.0,0.00011197,2]
[353988483,1740174650196,-500.0,0.0001128,2]
[353988484,1740174650206,-500.0,0.00011362,2]
[353988485,1740174650216,-353.84505174,0.00011363,2]
[353988486,1740174650225,-500.0,0.00011363,2]
[353988487,1740174650235,-500.0,0.00011363,2]
[353988488,1740174650244,-183.33728427,0.00011363,2]
[353988489,1740174650253,-500.0,0.00011363,2]
[353988490,1740174650264,-500.0,0.00011363,2]
[353988491,1740174650274,-500.0,0.00011363,2]
[353988492,1740174650284,-500.0,0.00011363,2]
[353988493,1740174650294,-500.0,0.00011363,2]
[353988494,1740174650303,-328.54,0.00011363,2]
[353988495,1740174650312,-500.0,0.00011363,2]
[353988496,1740174650321,-611.64,0.00011363,2]
[353988497,1740174650331,-500.0,0.00011363,2]
[353988498,1740174650340,-500.0,0.00011363,2]
[353988499,1740174650349,-500.0,0.00011363,2]
[353988500,1740174650358,-500.0,0.00011363,2]
[353988501,1740174650367,-500.0,0.00011363,2]
[353988502,1740174650377,-687.76,0.00011363,2]
[353988503,1740174650386,-500.0,0.00011363,2]
[353988504,1740174650395,-500.0,0.00011363,2]
[353988505,1740174650404,-500.0,0.00011363,2]
[353988506,1740174650414,-952.55,0.00011363,2]
[353988507,1740174650424,-500.0,0.00011363,2]
[353988508,1740174650433,-510.16,0.00011363,2]
[353988509,1740174650443,-869.63,0.00011363,2]
[353988510,1740174650452,-500.0,0.00011363,2]
[353988511,1740174650461,-583.09,0.00011363,2]
[353988512,1740174650471,-500.0,0.00011363,2]
[353988513,1740174650480,-500.0,0.00011363,2]
[353988514,1740174650489,-500.0,0.00011363,2]
[353988515,1740174650498,-500.0,0.00011363,2]
[353988516,1740174650507,-164.98,0.00011363,2]
[353988517,1740174650517,-500.0,0.00011363,2]
[353988518,1740174650528,-1519.19,0.00011363,2]
[353988519,1740174650537,-500.0,0.00011363,2]
[353988520,1740174650546,-500.0,0.00011363,2]
[353988521,1740174650556,-500.0,0.00011363,2]
[353988522,1740174650565,-500.0,0.00011363,2]
[353988523,1740174650575,-540.07,0.00011363,2]
[353988524,1740174650584,-500.0,0.00011363,2]
[353988525,1740174650593,-214.71519728,0.00011363,2]
[353988526,1740174650602,-500.0,0.00011363,2]
[353988527,1740174650611,-587.33,0.00011363,2]
[353988528,1740174650620,-500.0,0.00011363,2]
[353988529,1740174650630,-500.0,0.00011363,2]
[353988530,1740174650640,-500.0,0.00011363,2]
[353988531,1740174650650,-500.0,0.00011363,2]
[353988532,1740174650659,-500.0,0.00011363,2]
[353988533,1740174650668,-500.0,0.00011363,2]
[353988534,1740174650677,-500.0,0.00011363,2]
[353988535,1740174650686,-500.0,0.00011363,2]
[353988536,1740174650695,-500.0,0.00011363,2]
[353988537,1740174650704,-500.0,0.00011363,2]
[353988538,1740174650713,-500.0,0.00011363,2]
[353988539,1740174650722,-500.0,0.00011363,2]
[353988540,1740174650733,-500.0,0.00011363,2]
[353988541,1740174650742,-500.0,0.00011363,2]
[353988542,1740174650751,-500.0,0.00011363,2]
[353988543,1740174650760,-500.0,0.00011363,2]
[353988544,1740174650770,-580.81,0.00011363,2]
[353988545,1740174650779,-500.0,0.00011363,2]
[353988546,1740174650789,-500.0,0.00011363,2]
[353988547,1740174650798,-500.0,0.00011363,2]
[353988548,1740174650807,-500.0,0.00011363,2]
[353988549,1740174650816,-565.9,0.00011363,2]
[353988550,1740174650826,-500.0,0.00011363,2]
[353988551,1740174650835,-835.66,0.00011363,2]
[353988552,1740174650844,-500.0,0.00011363,2]
[353988553,1740174650853,-500.0,0.00011363,2]
[353988554,1740174650863,-500.0,0.00011363,2]
[353988555,1740174650873,-553.79,0.00011363,2]
[353988556,1740174650882,-192.81115322,0.00011363,2]
[353988557,1740174650892,-982.9,0.00011363,2]
[353988558,1740174650901,-182.99,0.00011363,2]
[353988559,1740174650910,-500.0,0.00011363,2]
[353988560,1740174650919,-500.0,0.00011363,2]
[353988561,1740174650929,-500.0,0.00011363,2]
[353988562,1740174650938,-500.0,0.00011363,2]
[353988563,1740174650947,-500.0,0.00011363,2]
[353988564,1740174650956,-813.42,0.00011363,2]
[353988565,1740174650965,-566.0,0.00011363,2]
[353988566,1740174650975,-500.0,0.00011363,2]
[353988567,1740174650984,-500.0,0.00011363,2]
[353988568,1740174650993,-500.0,0.00011363,2]
[353988569,1740174651002,-503.94,0.00011363,2]
[353988570,1740174651011,-500.0,0.00011363,2]
[353988571,1740174651021,-662.95,0.00011363,2]
[353988572,1740174651031,-500.0,0.00011363,2]
[353988573,1740174651040,-500.0,0.00011363,2]
[353988574,1740174651050,-500.0,0.00011363,2]
[353988575,1740174651059,-500.0,0.00011363,2]
[353988576,1740174651068,-350.35,0.00011363,2]
[353988577,1740174651078,-725.61,0.00011363,2]
[353988578,1740174651087,-744.03,0.00011363,2]
[353988579,1740174651097,-500.0,0.00011363,2]
[353988580,1740174651107,-500.0,0.00011363,2]
[353988581,1740174651116,-934.73,0.00011363,2]
[353988582,1740174651126,-500.0,0.00011363,2]
[353988583,1740174651135,-1567.06,0.00011363,2]
[353988584,1740174651144,-500.0,0.00011363,2]
[353988585,1740174651154,-328.65,0.00011363,2]
[353988586,1740174651164,-867.84,0.00011363,2]
[353988587,1740174651173,-500.0,0.00011363,2]
[353988588,1740174651183,-500.0,0.00011363,2]
[353988589,1740174651194,-435.82878026,0.00011363,2]
[353988590,1740174651206,-500.0,0.00011363,2]
[353988591,1740174651215,-500.0,0.00011363,2]
[353988592,1740174651224,-500.0,0.00011363,2]
[353988593,1740174651235,-279.95829014,0.00011363,2]
[353988594,1740174651244,-500.0,0.00011363,2]
[353988595,1740174651253,-526.32752915,0.00011363,2]
[353988596,1740174651263,-500.0,0.00011363,2]
[353988597,1740174651274,-500.0,0.00011363,2]
[353988598,1740174651284,-983.84,0.00011363,2]
[353988599,1740174651293,-500.0,0.00011363,2]
[353988600,1740174651303,-500.0,0.00011363,2]
[353988601,1740174651312,-500.0,0.00011363,2]
[353988602,1740174651322,-566.39745874,0.00011363,2]
[353988603,1740174651331,-500.0,0.00011363,2]
[353988604,1740174651341,-500.0,0.00011363,2]
[353988605,1740174651350,-500.0,0.00011363,2]
[353988606,1740174651359,-500.0,0.00011363,2]
[353988607,1740174651368,-500.0,0.00011363,2]
[353988608,1740174651378,-500.0,0.00011363,2]
[353988609,1740174651387,-500.0,0.00011363,2]
[353988610,1740174651396,-229.63868702,0.00011363,2]
[353988611,1740174651405,-500.0,0.00011363,2]
[353988612,1740174651414,-500.0,0.00011363,2]
[353988613,1740174651423,-500.0,0.00011363,2]
[353988614,1740174651433,-500.0,0.00011363,2]
[353988615,1740174651442,-500.0,0.00011363,2]
[353988616,1740174651452,-500.0,0.00011363,2]
[353988617,1740174651461,-500.0,0.00011363,2]
[353988618,1740174651470,-608.33,0.00011363,2]
[353988619,1740174651480,-500.0,0.00011363,2]
[353988620,1740174651489,-200.0,0.00011364,2]
[353988621,1740174651499,-320.11,0.00011364,2]
[353988622,1740174651508,-500.0,0.00011364,2]
[353988623,1740174651518,-500.0,0.00011364,2]
[353988624,1740174651527,-500.0,0.00011364,2]
[353988625,1740174651537,-500.0,0.00011364,2]
[353988626,1740174651546,-605.1,0.00011364,2]
[353988627,1740174651555,-500.0,0.00011364,2]
[353988628,1740174651565,-500.0,0.00011364,2]
[353988629,1740174651574,-500.0,0.00011364,2]
[353988630,1740174651583,-500.0,0.00011364,2]
[353988631,1740174651592,-360.10194005,0.00011364,2]
[353988632,1740174651601,-500.0,0.00011364,2]
[353988633,1740174651610,-500.0,0.00011364,2]
[353988634,1740174651620,-440.17655044,0.00011364,2]
[353988635,1740174651629,-500.0,0.00011364,2]
[353988636,1740174651638,-500.0,0.00011364,2]
[353988637,1740174651647,-500.0,0.00011364,2]
[353988638,1740174651656,-500.0,0.00011364,2]
[353988639,1740174651665,-731.16,0.00011364,2]
[353988640,1740174651674,-271.24,0.00011364,2]
[353988641,1740174651683,-534.54,0.00011364,2]
[353988642,1740174651692,-508.23,0.00011364,2]
[353988643,1740174651701,-434.02,0.00011364,2]
[353988644,1740174651710,-500.0,0.00011364,2]
[353988645,1740174651718,-389.84,0.00011364,2]
[353988646,1740174651729,-259.66,0.00011364,2]
[353988647,1740174651738,-500.0,0.00011364,2]
[353988648,1740174651747,-466.22,0.00011364,2]
[353988649,1740174651756,-500.0,0.00011364,2]
[353988650,1740174651765,-500.0,0.00011364,2]
[353988651,1740174651775,-500.0,0.00011364,2]
[353988652,1740174651784,-458.84,0.00011364,2]
[353988653,1740174651793,-500.0,0.00011364,2]
[353988654,1740174651802,-500.0,0.00011364,2]
[353988655,1740174651812,-500.0,0.00011364,2]
[353988656,1740174651821,-500.0,0.00011364,2]
[353988657,1740174651831,-494.59271543,0.00011364,2]
[353988658,1740174651840,-500.0,0.00011364,2]
[353988659,1740174651848,-500.0,0.00011364,2]
[353988660,1740174651858,-500.0,0.00011364,2]
[353988661,1740174651867,-500.0,0.00011364,2]
[353988662,1740174651875,-408.63,0.00011364,2]
[353988663,1740174651885,-500.0,0.00011364,2]
[353988664,1740174651894,-500.0,0.00011364,2]
[353988665,1740174651904,-500.0,0.00011364,2]
[353988666,1740174651913,-256.63,0.00011364,2]
[353988667,1740174651922,-500.0,0.00011364,2]
[353988668,1740174651931,-500.0,0.00011364,2]
[353988669,1740174651941,-163.0,0.00011364,3]
[353988670,1740174651950,-4000.0,0.00011364,2]
[353988671,1740174651959,-150.0,0.00011374,2]
[353988672,1740174651968,-150.0,0.00011392,2]
[353988673,1740174651977,-150.0,0.00011395,2]
[353988674,1740174651986,-500.0,0.00011404,2]
[353988675,1740174651995,-1000.0,0.00011404,2]
[353988676,1740174652005,-500.0,0.00011444,2]
[353988677,1740174652015,-500.0,0.00011444,2]
[353988678,1740174652025,-500.0,0.00011444,2]
[353988679,1740174652034,-500.0,0.00011444,2]
[353988680,1740174652044,-769.58,0.00011444,2]
[353988681,1740174652053,-712.23,0.00011444,2]
[353988682,1740174652063,-782.18,0.00011444,2]
[353988683,1740174652072,-500.0,0.00011444,2]
[353988684,1740174652081,-500.0,0.00011444,2]
[353988685,1740174652090,-500.0,0.00011444,2]
[353988686,1740174652100,-500.0,0.00011444,2]
[353988687,1740174652110,-929.31,0.00011444,2]
[353988688,1740174652119,-689.62,0.00011444,2]
[353988689,1740174652128,-657.86,0.00011444,2]
[353988690,1740174652138,-500.0,0.00011444,2]
[353988691,1740174652147,-500.0,0.00011444,2]
[353988692,1740174652157,-500.0,0.00011444,2]
[353988693,1740174652166,-630.73,0.00011444,2]
[353988694,1740174652175,-500.0,0.00011444,2]
[353988695,1740174652186,-500.0,0.00011444,2]
[353988696,1740174652197,-501.22,0.00011444,2]
[353988697,1740174652207,-500.0,0.00011444,2]
[353988698,1740174652216,-500.0,0.00011444,2]
[353988699,1740174652225,-715.96,0.00011444,2]
[353988700,1740174652235,-1064.98,0.00011444,2]
[353988701,1740174652244,-500.0,0.00011444,2]
[353988702,1740174652253,-500.0,0.00011444,2]
[353988703,1740174652263,-1147.05,0.00011444,2]
[353988704,1740174652274,-500.0,0.00011444,2]
[353988705,1740174652284,-2413.09,0.00011444,2]
[353988706,1740174652293,-522.96,0.00011444,2]
[353988707,1740174652302,-500.0,0.00011444,2]
[353988708,1740174652312,-500.0,0.00011444,2]
[353988709,1740174652322,-500.0,0.00011444,2]
[353988710,1740174652331,-500.0,0.00011444,2]
[353988711,1740174652501,-500.0,0.00011444,2]
[353988712,1740174652519,-500.0,0.00011445,2]
[353988713,1740174652528,-500.0,0.00011445,2]
[353988714,1740174652538,-500.0,0.00011445,2]
[353988715,1740174652546,-500.0,0.00011445,2]
[353988716,1740174652555,-500.0,0.00011445,2]
[353988717,1740174652564,-159.73,0.00011445,2]
[353988718,1740174652573,-500.0,0.00011445,2]
[353988719,1740174652582,-585.92,0.00011445,2]
[353988720,1740174652592,-500.0,0.00011445,2]
[353988721,1740174652601,-500.0,0.00011445,2]
[353988722,1740174652610,-500.0,0.00011445,2]
[353988723,1740174652619,-500.0,0.00011445,2]
[353988724,1740174652629,-500.0,0.00011445,2]
[353988725,1740174652639,-447.275461,0.00011445,2]
[353988726,1740174652648,-500.0,0.00011445,2]
[353988727,1740174652658,-500.0,0.00011445,2]
[353988728,1740174652667,-500.0,0.00011445,2]
[353988729,1740174652676,-735.696285,0.00011445,2]
[353988730,1740174652686,-227.53539237,0.00011445,2]
[353988731,1740174652695,-500.0,0.00011445,2]
[353988732,1740174652704,-500.0,0.00011445,2]
[353988733,1740174652713,-500.0,0.00011445,2]
[353988734,1740174652722,-500.0,0.00011445,2]
[353988735,1740174652733,-500.0,0.00011445,2]
[353988736,1740174652743,-500.0,0.00011445,2]
[353988737,1740174652752,-500.0,0.00011445,2]
[353988738,1740174652761,-500.0,0.00011445,2]
[353988739,1740174652771,-500.0,0.00011445,2]
[353988740,1740174652780,-555.88,0.00011445,2]
[353988741,1740174652789,-500.0,0.00011445,2]
[353988742,1740174652798,-500.0,0.00011445,2]
[353988743,1740174652807,-500.0,0.00011445,2]
[353988744,1740174652816,-500.0,0.00011445,2]
[353988745,1740174652826,-500.0,0.00011445,2]
[353988746,1740174652834,-500.0,0.00011445,2]
[353988747,1740174652844,-332.6139351,0.00011445,2]
[353988748,1740174652853,-500.0,0.00011445,2]
[353988749,1740174652862,-500.0,0.00011445,2]
[353988750,1740174652871,-500.0,0.00011445,2]
[353988751,1740174652879,-500.0,0.00011445,2]
[353988752,1740174652889,-500.0,0.00011445,2]
[353988753,1740174652898,-500.0,0.00011445,2]
[353988754,1740174652907,-181.42,0.00011445,2]
[353988755,1740174652916,-179.01671214,0.00011445,2]
[353988756,1740174652926,-500.0,0.00011445,2]
[353988757,1740174652935,-270.75,0.00011445,2]
[353988758,1740174652944,-500.0,0.00011445,2]
[353988759,1740174652954,-500.0,0.00011445,2]
[353988760,1740174652963,-500.0,0.00011445,2]
[353988761,1740174652973,-611.64,0.00011445,2]
[353988762,1740174652982,-500.0,0.00011445,2]
[353988763,1740174652991,-500.0,0.00011445,2]
[353988764,1740174653000,-500.0,0.00011445,2]
[353988765,1740174653010,-500.0,0.00011445,2]
[353988766,1740174653020,-500.0,0.00011445,2]
[353988767,1740174653030,-687.76,0.00011445,2]
[353988768,1740174653040,-500.0,0.00011445,2]
[353988769,1740174653049,-500.0,0.00011445,2]
[353988770,1740174653058,-500.0,0.00011445,2]
[353988771,1740174653067,-952.55,0.00011445,2]
[353988772,1740174653079,-500.0,0.00011445,2]
[353988773,1740174653088,-510.16,0.00011445,2]
[353988774,1740174653097,-869.63,0.00011445,2]
[353988775,1740174653106,-500.0,0.00011445,2]
[353988776,1740174653115,-583.09,0.00011445,2]
[353988777,1740174653125,-500.0,0.00011445,2]
[353988778,1740174653134,-500.0,0.00011445,2]
[353988779,1740174653143,-466.65,0.00011445,2]
[353988780,1740174653152,-500.0,0.00011445,2]
[353988781,1740174653161,-500.0,0.00011445,2]
[353988782,1740174653170,-1519.19,0.00011445,2]
[353988783,1740174653179,-316.33073635,0.00011445,2]
[353988784,1740174653188,-500.0,0.00011445,2]
[353988785,1740174653200,-500.0,0.00011445,2]
[353988786,1740174653209,-500.0,0.00011445,2]
[353988787,1740174653219,-540.07,0.00011445,2]
[353988788,1740174653229,-628.55721957,0.00011445,2]
[353988789,1740174653239,-500.0,0.00011445,2]
[353988790,1740174653248,-500.0,0.00011445,2]
[353988791,1740174653258,-500.0,0.00011445,2]
[353988792,1740174653268,-500.0,0.00011445,2]
[353988793,1740174653279,-500.0,0.00011445,2]
[353988794,1740174653289,-515.84302968,0.00011445,2]
[353988795,1740174653298,-500.0,0.00011445,2]
[353988796,1740174653307,-319.24,0.00011445,2]
[353988797,1740174653317,-500.0,0.00011445,2]
[353988798,1740174653327,-500.0,0.00011445,2]
[353988799,1740174653336,-500.0,0.00011445,2]
[353988800,1740174653346,-153.712274,0.00011445,2]
[353988801,1740174653355,-500.0,0.00011445,2]
[353988802,1740174653365,-500.0,0.00011445,2]
[353988803,1740174653375,-500.0,0.00011445,2]
[353988804,1740174653384,-500.0,0.00011445,2]
[353988805,1740174653393,-580.81,0.00011445,2]
[353988806,1740174653403,-154.22,0.00011445,2]
[353988807,1740174653412,-500.0,0.00011445,2]
[353988808,1740174653422,-500.0,0.00011445,2]
[353988809,1740174653431,-500.0,0.00011445,2]
[353988810,1740174653441,-500.0,0.00011445,2]
[353988811,1740174653451,-835.66,0.00011445,2]